[Event "Open International Liffre 2019"]
[Site "Liffre"]
[Date "2019.10.20"]
[Round "2.2"]
[White "Vidal, Llewellyn"]
[Black "Enchev, Ivajlo"]
[Result "1/2-1/2"]
[TimeControl "1h30 + 30s/coup + 30 min /40 Coup"]
[WhiteTitle "FM"]
[BlackTitle "GM"]
[WhiteElo "2319"]
[BlackElo "2488"]

1. c4 {[%clk 01:30:56]} {[%emt 00:00:03]} e6 {[%clk 01:30:41]} {[%emt
00:00:19]} 2. Nf3 {[%clk 01:31:00]} {[%emt 00:00:26]} Nf6 {[%clk 01:29:22]}
{[%emt 00:01:50]} 3. g3 {[%clk 01:31:24]} {[%emt 00:00:05]} d5 {[%clk
01:29:33]} {[%emt 00:00:19]} 4. Bg2 {[%clk 01:31:48]} {[%emt 00:00:06]} dxc4
{[%clk 01:29:03]} {[%emt 00:01:00]} 5. O-O {[%clk 01:32:11]} {[%emt 00:00:07]}
Nbd7 {[%clk 01:29:07]} {[%emt 00:00:25]} 6. Qc2 {[%clk 01:31:37]} {[%emt
00:01:05]} a6 {[%clk 01:23:57]} {[%emt 00:05:40]} 7. a4 {[%clk 01:27:12]}
{[%emt 00:04:56]} c5 {[%clk 01:19:21]} {[%emt 00:05:06]} 8. a5 {[%clk
01:18:51]} {[%emt 00:08:51]} Be7 {[%clk 01:15:45]} {[%emt 00:04:05]} 9. Qxc4
{[%clk 01:18:02]} {[%emt 00:01:19]} b5 {[%clk 01:14:48]} {[%emt 00:01:27]} 10.
axb6 {[%clk 01:18:18]} {[%emt 00:00:15]} Nxb6 {[%clk 01:15:01]} {[%emt
00:00:16]} 11. Qc2 {[%clk 01:15:57]} {[%emt 00:02:52]} Bb7 {[%clk 01:14:34]}
{[%emt 00:00:56]} 12. d3 {[%clk 01:15:26]} {[%emt 00:01:02]} Nfd5 {[%clk
01:13:03]} {[%emt 00:02:01]} 13. b3 {[%clk 01:07:35]} {[%emt 00:08:21]} Nb4
{[%clk 01:10:32]} {[%emt 00:03:00]} 14. Qd2 {[%emt 00:00:31]} Bd5 {[%clk
01:07:55]} {[%emt 00:02:40]} 15. Ra3 {[%clk 01:08:16]} {[%emt 00:00:16]} O-O
{[%emt 00:05:23]} 16. Nc3 {[%clk 00:51:31]} {[%emt 00:04:42]} Bc6 17. Ne5
{[%emt 00:20:19]} Bxg2 {[%clk 00:56:10]} {[%emt 00:00:35]} 18. Kxg2 {[%emt
00:08:02]} Qc7 {[%emt 00:00:06]} 19. Nc4 {[%clk 00:42:02]} {[%emt 00:02:39]}
Nc6 20. Bb2 {[%clk 00:26:56]} {[%emt 00:13:48]} Nd4 21. Rfa1 {[%emt 00:18:42]}
Rfd8 {[%emt 00:04:17]} 22. Kg1 {[%emt 00:03:30]} Nxb3 {[%clk 00:38:22]} {[%emt
00:00:01]} 23. Rxb3 {[%clk 00:22:41]} {[%emt 00:01:04]} Nxc4 {[%clk 00:38:43]}
{[%emt 00:00:08]} 24. Qc2 {[%emt 00:01:14]} Na5 {[%clk 00:37:20]} {[%emt
00:01:02]} 25. Rba3 {[%clk 00:21:57]} {[%emt 00:01:21]} Nc6 {[%clk 00:37:31]}
{[%emt 00:00:19]} 26. Ne4 {[%clk 00:14:41]} {[%emt 00:07:47]} Bf8 {[%emt
00:10:12]} 27. Ra4 {[%clk 00:09:24]} {[%emt 00:01:35]} Rd5 {[%clk 00:29:56]}
{[%emt 00:02:34]} 28. h4 {[%clk 00:06:12]} {[%emt 00:03:42]} h6 {[%clk
00:26:47]} {[%emt 00:03:39]} 29. Rc4 {[%clk 00:01:00]} {[%emt 00:05:43]} Qb6
{[%clk 00:24:23]} {[%emt 00:02:52]} 30. Ba3 {[%clk 00:00:33]} {[%emt 00:00:58]}
Nd4 {[%clk 00:23:32]} {[%emt 00:01:21]} 31. Qd1 {[%clk 00:00:46]} {[%emt
00:00:17]} Rb8 {[%clk 00:23:06]} {[%emt 00:00:56]} 32. Nxc5 {[%clk 00:00:36]}
{[%emt 00:00:40]} Bxc5 {[%clk 00:16:06]} {[%emt 00:07:30]} 33. Bxc5 {[%clk
00:00:55]} {[%emt 00:00:11]} Nxe2+ {[%clk 00:16:16]} {[%emt 00:00:20]} 34. Qxe2
{[%clk 00:01:23]} {[%emt 00:00:02]} Rxc5 {[%clk 00:16:41]} {[%emt 00:00:06]} 35.
Rxc5 {[%clk 00:01:15]} {[%emt 00:00:37]} Qxc5 {[%clk 00:17:05]} {[%emt
00:00:06]} 36. Rxa6 {[%clk 00:01:03]} {[%emt 00:00:42]} Rb1+ {[%clk 00:16:28]}
{[%emt 00:01:07]} 37. Kh2 {[%clk 00:00:48]} {[%emt 00:00:45]} Qc1 {[%clk
00:15:50]} {[%emt 00:01:08]} 38. Qf3 {[%clk 00:00:36]} {[%emt 00:00:43]} Qg1
{[%clk 00:13:31]} {[%emt 00:02:47]} 39. Kh3 {[%clk 00:01:05]} Qf1 {[%clk
00:10:22]} {[%emt 00:03:41]} 40. Qg2 {[%clk 00:01:01]} {[%emt 00:00:34]} Qxd3
{[%clk 00:10:36]} {[%emt 00:00:16]} 41. Ra2 {[%clk 00:29:59]} {[%emt 00:01:32]}
g5 {[%clk 00:39:03]} {[%emt 00:02:03]} 42. Kh2 {[%clk 00:27:25]} {[%emt
00:03:04]} Kg7 {[%clk 00:38:09]} {[%emt 00:01:23]} 43. Ra4 {[%clk 00:24:36]}
{[%emt 00:03:20]} Rb2 {[%clk 00:36:00]} {[%emt 00:02:39]} 44. hxg5 hxg5 {[%clk
00:36:23]} 45. Ra1 {[%clk 00:23:59]} {[%emt 00:00:13]} g4 {[%emt 00:01:47]} 46.
Kg1 {[%emt 00:07:47]} e5 {[%emt 00:06:28]} 47. Qf1 {[%clk 00:16:45]} {[%emt
00:03:10]} Qd4 48. Re1 {[%clk 00:11:39]} {[%emt 00:03:52]} Rb3 49. Qe2 {[%emt
00:07:18]} Rxg3+ {[%clk 00:22:36]} {[%emt 00:00:15]} 50. Kf1 {[%clk 00:11:57]}
{[%emt 00:00:12]} Rf3 {[%clk 00:22:50]} {[%emt 00:00:15]} 51. Qxe5+ {[%clk
00:12:22]} {[%emt 00:00:06]} Qxe5 {[%clk 00:23:16]} {[%emt 00:00:04]} 52. Rxe5
{[%clk 00:12:46]} {[%emt 00:00:06]} Kf6 {[%clk 00:22:48]} {[%emt 00:00:56]} 53.
Ra5 {[%clk 00:12:00]} {[%emt 00:01:18]} g3 {[%clk 00:23:09]} {[%emt 00:00:10]}
54. Kg2 {[%clk 00:12:15]} {[%emt 00:00:14]} gxf2 {[%clk 00:23:17]} {[%emt
00:00:22]} 55. Kf1 {[%clk 00:12:43]} Kg6 {[%clk 00:23:21]} {[%emt 00:00:28]} 56.
Rb5 {[%clk 00:12:55]} {[%emt 00:00:19]} f5 {[%clk 00:22:12]} {[%emt 00:01:38]}
57. Rb8 {[%clk 00:12:05]} {[%emt 00:01:20]} Rf4 {[%clk 00:19:39]} {[%emt
00:03:03]} 58. Rg8+ {[%clk 00:10:52]} {[%emt 00:01:44]} Kf6 {[%clk 00:17:27]}
{[%emt 00:02:41]} 59. Rf8+ {[%clk 00:10:34]} {[%emt 00:00:48]} Kg5 {[%clk
00:17:03]} {[%emt 00:00:54]} 60. Ra8 {[%clk 00:06:39]} {[%emt 00:04:25]} Rf3
{[%clk 00:15:14]} {[%emt 00:02:18]} 61. Ra4 {[%clk 00:06:39]} {[%emt 00:00:30]}
Kh5 {[%clk 00:14:59]} {[%emt 00:00:45]} 62. Rb4 {[%clk 00:06:32]} {[%emt
00:00:38]} Kg5 {[%clk 00:14:16]} {[%emt 00:01:13]} 63. Ra4 {[%clk 00:07:00]}
Kf6 {[%clk 00:14:30]} {[%emt 00:00:18]} 64. Ra5 {[%clk 00:07:18]} {[%emt
00:00:12]} Rf4 {[%clk 00:14:50]} {[%emt 00:00:10]} 65. Ra3 {[%clk 00:07:25]}
{[%emt 00:00:23]} Kg5 {[%clk 00:15:13]} {[%emt 00:00:06]} 66. Rb3 {[%clk
00:07:40]} {[%emt 00:00:16]} Kg4 {[%clk 00:15:33]} {[%emt 00:00:10]} 67. Ra3
{[%clk 00:07:56]} {[%emt 00:00:15]} Rb4 {[%clk 00:14:51]} {[%emt 00:01:11]} 68.
Kxf2 {[%clk 00:08:15]} {[%emt 00:00:11]} Rb2+ {[%clk 00:15:19]} {[%emt
00:00:02]} 69. Kf1 {[%clk 00:08:34]} {[%emt 00:00:09]} Kf4 {[%clk 00:15:38]}
{[%emt 00:00:12]} 70. Rc3 {[%clk 00:08:37]} {[%emt 00:00:28]} Ke5 {[%emt
00:00:24]} 1/2-1/2

[ePGN "0.1;DGT LiveChess/2.1"]

[Event "Open International Liffre 2019"]
[Site "Liffre"]
[Date "2019.10.20"]
[Round "2.3"]
[White "Guilleux, Fabien"]
[Black "Konguvel, Ponnuswamy"]
[Result "*"]
[TimeControl "1h30 + 30s/coup + 30 min /40 Coup"]
[WhiteTitle "IM"]
[BlackTitle "IM"]
[WhiteElo "2433"]
[BlackElo "2370"]

1. b3 {[%clk 01:30:54]} {[%emt 00:00:05]} Nf6 {[%clk 01:29:08]} {[%emt
00:01:52]} 2. Bb2 {[%clk 01:31:13]} {[%emt 00:00:11]} g6 {[%clk 01:27:33]}
{[%emt 00:02:06]} 3. Bxf6 {[%clk 01:31:09]} {[%emt 00:00:33]} exf6 {[%clk
01:28:00]} {[%emt 00:00:04]} 4. c4 {[%clk 01:31:26]} {[%emt 00:00:13]} Bg7
{[%clk 01:26:53]} {[%emt 00:01:37]} 5. Nc3 {[%clk 01:31:42]} {[%emt 00:00:13]}
d6 {[%clk 01:26:58]} {[%emt 00:00:25]} 6. g3 {[%clk 01:31:05]} {[%emt
00:01:07]} f5 {[%clk 01:26:37]} {[%emt 00:00:51]} 7. Bg2 {[%clk 01:30:33]}
{[%emt 00:01:02]} Nd7 {[%clk 01:27:02]} {[%emt 00:00:05]} 8. e3 {[%clk
01:27:48]} {[%emt 00:03:15]} O-O {[%clk 01:23:39]} {[%emt 00:03:53]} 9. Nge2
{[%clk 01:27:48]} {[%emt 00:00:30]} c6 {[%clk 01:22:53]} {[%emt 00:01:16]} 10.
d4 {[%clk 01:25:11]} {[%emt 00:03:07]} Nf6 {[%clk 01:23:05]} {[%emt 00:00:17]}
11. O-O {[%clk 01:22:09]} {[%emt 00:03:33]} Re8 {[%clk 01:23:26]} {[%emt
00:00:09]} 12. b4 {[%clk 01:12:24]} {[%emt 00:10:16]} Ne4 {[%clk 01:15:48]}
{[%emt 00:08:07]} 13. Qd3 {[%clk 01:10:36]} {[%emt 00:02:17]} Qe7 {[%clk
01:15:45]} {[%emt 00:00:34]} 14. b5 {[%clk 01:07:13]} {[%emt 00:03:54]} Bd7
{[%clk 01:15:25]} {[%emt 00:00:50]} 15. bxc6 {[%clk 01:05:10]} {[%emt
00:02:32]} Bxc6 {[%clk 01:13:10]} {[%emt 00:02:46]} 16. Rab1 {[%clk 00:56:44]}
{[%emt 00:08:56]} Rac8 {[%clk 01:06:48]} {[%emt 00:06:52]} 17. Nf4 {[%clk
00:45:59]} {[%emt 00:11:14]} Nxc3 {[%clk 00:52:37]} {[%emt 00:14:42]} 18. Qxc3
{[%clk 00:45:49]} {[%emt 00:00:40]} Bxg2 {[%clk 00:53:02]} {[%emt 00:00:05]} 19.
Nxg2 {[%clk 00:45:52]} {[%emt 00:00:26]} h5 {[%clk 00:38:43]} {[%emt 00:14:49]}
20. Rfc1 {[%clk 00:36:37]} {[%emt 00:09:45]} b6 {[%clk 00:38:02]} {[%emt
00:01:11]} 21. Rb5 {[%clk 00:32:22]} {[%emt 00:04:46]} Bf6 {[%clk 00:33:06]}
{[%emt 00:05:25]} 22. h4 {[%clk 00:30:05]} {[%emt 00:02:47]} Rc6 {[%clk
00:28:02]} {[%emt 00:05:35]} 23. a4 {[%clk 00:20:26]} {[%emt 00:10:09]} Rec8
{[%clk 00:22:28]} {[%emt 00:06:04]} 24. a5 {[%clk 00:16:29]} {[%emt 00:04:26]}
Qe6 {[%clk 00:11:37]} {[%emt 00:11:21]} 25. axb6 {[%clk 00:16:22]} {[%emt
00:00:37]} Rxc4 {[%clk 00:10:39]} {[%emt 00:01:28]} 26. bxa7 {[%clk 00:12:30]}
{[%emt 00:04:22]} Rxc3 {[%clk 00:10:45]} {[%emt 00:00:24]} 27. Rxc3 {[%clk
00:12:51]} {[%emt 00:00:09]} Rxc3 {[%clk 00:10:52]} {[%emt 00:00:24]} 28. a8=Q+
{[%clk 00:13:10]} {[%emt 00:00:11]} Kg7 {[%clk 00:10:35]} {[%emt 00:00:47]} 29.
Rb1 {[%clk 00:05:22]} {[%emt 00:08:17]} Qc4 {[%clk 00:03:25]} {[%emt 00:07:41]}
30. Nf4 {[%clk 00:04:58]} {[%emt 00:00:53]} Rc1+ {[%clk 00:03:52]} {[%emt
00:00:04]} 31. Rxc1 {[%clk 00:05:20]} {[%emt 00:00:08]} Qxc1+ {[%clk 00:04:20]}
32. Kg2 {[%clk 00:05:40]} {[%emt 00:00:11]} Qc2 {[%clk 00:04:43]} {[%emt
00:00:07]} 33. Qd5 {[%clk 00:03:03]} {[%emt 00:03:07]} Be7 {[%clk 00:03:20]}
{[%emt 00:01:54]} 34. Qb5 {[%clk 00:02:57]} {[%emt 00:00:35]} Qe4+ {[%clk
00:02:55]} {[%emt 00:00:55]} 35. Kg1 {[%clk 00:03:10]} {[%emt 00:00:17]} Qf3
{[%clk 00:01:45]} {[%emt 00:01:41]} 36. Qd7 {[%clk 00:02:31]} {[%emt 00:01:08]}
Qe4 {[%clk 00:02:03]} {[%emt 00:00:13]} 37. d5 {[%clk 00:02:24]} {[%emt
00:00:37]} Kf8 {[%clk 00:01:30]} {[%emt 00:01:02]} 38. Qc8+ {[%clk 00:02:26]}
{[%emt 00:00:28]} Kg7 {[%clk 00:01:59]} 39. Qe8 {[%clk 00:02:41]} {[%emt
00:00:15]} Bf6 {[%clk 00:01:04]} {[%emt 00:01:27]} 40. Qd7 {[%clk 00:02:13]}
{[%emt 00:00:57]} Qe7 {[%clk 00:00:43]} {[%emt 00:00:52]} 41. Qc6 {[%clk
00:01:45]} {[%emt 00:00:57]} Be5 {[%clk 00:27:46]} {[%emt 00:03:27]} 42. Ng2
{[%clk 00:26:51]} {[%emt 00:05:24]} Qd8 {[%clk 00:21:07]} {[%emt 00:07:10]} 43.
Ne1 {[%clk 00:26:11]} {[%emt 00:01:09]} Qb8 {[%clk 00:19:23]} {[%emt 00:02:14]}
44. Qc2 {[%clk 00:18:05]} {[%emt 00:08:36]} Qb5 {[%clk 00:17:44]} {[%emt
00:02:09]} 45. Qd3 {[%clk 00:17:35]} {[%emt 00:01:00]} Qb4 {[%clk 00:15:45]}
{[%emt 00:02:30]} 46. Nf3 {[%clk 00:17:33]} {[%emt 00:00:31]} Qe4 {[%clk
00:13:57]} {[%emt 00:02:18]} 47. Qxe4 {[%clk 00:13:50]} {[%emt 00:04:13]} fxe4
{[%clk 00:14:25]} 48. Ng5 {[%clk 00:13:50]} {[%emt 00:00:32]} f5 {[%clk
00:14:31]} {[%emt 00:00:24]} 49. Kf1 {[%clk 00:14:12]} {[%emt 00:00:07]} Kf6
{[%clk 00:13:04]} {[%emt 00:01:58]} 50. Ke2 {[%clk 00:14:07]} {[%emt 00:00:35]}
Bc3 {[%clk 00:13:28]} {[%emt 00:00:06]} 51. Kd1 {[%clk 00:13:42]} {[%emt
00:00:54]} Ke5 {[%clk 00:05:42]} {[%emt 00:08:17]} 52. Ne6 {[%clk 00:13:40]}
{[%emt 00:00:31]} Kxd5 {[%clk 00:05:01]} {[%emt 00:01:11]} 53. Nf4+ {[%clk
00:14:03]} {[%emt 00:00:08]} Ke5 {[%clk 00:05:25]} {[%emt 00:00:07]} 54. Nxg6+
{[%clk 00:14:22]} {[%emt 00:00:10]} Kf6 {[%clk 00:05:54]} 55. Nf4 {[%clk
00:14:37]} {[%emt 00:00:16]} Be5 {[%clk 00:06:20]} {[%emt 00:00:03]} 56. Ne2
{[%clk 00:10:31]} {[%emt 00:04:37]} Ke6 {[%clk 00:06:00]} {[%emt 00:00:51]} 57.
Kc2 {[%clk 00:10:39]} {[%emt 00:00:21]} Kd5 {[%clk 00:05:47]} {[%emt 00:00:43]}
58. Ng1 {[%clk 00:10:15]} {[%emt 00:00:54]} Kc4 {[%clk 00:06:01]} {[%emt
00:00:16]} 59. Nh3 {[%clk 00:10:35]} {[%emt 00:00:09]} d5 {[%clk 00:06:19]}
{[%emt 00:00:13]} 60. Kd2 {[%clk 00:10:33]} {[%emt 00:00:33]} d4 {[%clk
00:05:50]} {[%emt 00:00:58]} 61. exd4 {[%clk 00:10:54]} {[%emt 00:00:08]} Kxd4
{[%clk 00:05:58]} {[%emt 00:00:24]} 62. Ke2 {[%clk 00:10:43]} {[%emt 00:00:40]}
Kd5 {[%clk 00:06:07]} {[%emt 00:00:21]} 63. Ke3 {[%clk 00:09:18]} {[%emt
00:01:55]} Ke6 {[%clk 00:06:12]} {[%emt 00:00:25]} 64. Ng5+ {[%clk 00:06:13]}
{[%emt 00:03:35]} Kf6 {[%clk 00:06:41]} {[%emt 00:00:02]} 65. Ke2 {[%clk
00:06:30]} {[%emt 00:00:12]} Bc7 {[%clk 00:06:30]} {[%emt 00:00:41]} 66. Kf1
{[%clk 00:06:10]} {[%emt 00:00:50]} Ba5 {[%clk 00:06:23]} {[%emt 00:00:38]} 67.
Nh3 {[%clk 00:05:48]} {[%emt 00:00:52]} Bd2 {[%clk 00:06:26]} {[%emt 00:00:27]}
68. Ke2 {[%clk 00:05:28]} {[%emt 00:00:48]} Bh6 {[%clk 00:06:24]} {[%emt
00:00:33]} 69. f3 {[%clk 00:05:21]} {[%emt 00:00:37]} exf3+ {[%clk 00:04:53]}
{[%emt 00:02:01]} 70. Kxf3 {[%clk 00:05:49]} {[%emt 00:00:02]} Ke5 {[%clk
00:04:16]} {[%emt 00:01:07]} 71. Nf2 {[%clk 00:05:32]} {[%emt 00:00:47]} Kd4
{[%clk 00:04:02]} {[%emt 00:00:44]} 72. Nd1 {[%clk 00:05:53]} {[%emt 00:00:09]}
Bc1 {[%clk 00:03:19]} {[%emt 00:01:13]} 73. Nf2 {[%clk 00:05:35]} {[%emt
00:00:48]} Bh6 {[%clk 00:03:31]} {[%emt 00:00:18]} 74. Nh3 {[%clk 00:05:44]}
{[%emt 00:00:21]} Ke5 {[%clk 00:04:00]} 75. Ng1 {[%clk 00:05:40]} {[%emt
00:00:35]} f4 {[%clk 00:03:36]} {[%emt 00:00:54]} 76. Ne2 {[%clk 00:06:03]}
{[%emt 00:00:08]} fxg3 {[%clk 00:03:58]} {[%emt 00:00:08]} 77. Nxg3 {[%clk
00:06:25]} {[%emt 00:00:07]} Bf8 {[%clk 00:04:15]} {[%emt 00:00:12]} 78. Nxh5
{[%clk 00:06:48]} {[%emt 00:00:08]} Be7 {[%clk 00:04:43]} {[%emt 00:00:02]} 79.
Kg4 {[%clk 00:07:08]} {[%emt 00:00:09]} Bxh4 {[%clk 00:05:09]} {[%emt
00:00:05]} *

[ePGN "0.1;DGT LiveChess/2.1"]

[Event "Open International Liffre 2019"]
[Site "Liffre"]
[Date "2019.10.20"]
[Round "2.4"]
[White "Dalaud, Dorian"]
[Black "Sundararajan, Kidambi"]
[Result "0-1"]
[TimeControl "1h30 + 30s/coup + 30 min /40 Coup"]
[BlackTitle "GM"]
[WhiteElo "2227"]
[BlackElo "2422"]

1. c4 {[%clk 01:17:04]} {[%emt 00:13:55]} e6 {[%clk 01:30:29]} {[%emt
00:00:31]} 2. Nc3 {[%clk 01:17:24]} {[%emt 00:00:11]} d5 {[%clk 01:30:43]}
{[%emt 00:00:16]} 3. e3 {[%clk 01:17:48]} {[%emt 00:00:05]} c5 {[%clk
01:30:39]} {[%emt 00:00:34]} 4. Nf3 {[%clk 01:18:12]} {[%emt 00:00:06]} d4
{[%clk 01:28:29]} {[%emt 00:02:40]} 5. exd4 {[%clk 01:14:11]} {[%emt 00:04:32]}
cxd4 {[%clk 01:28:46]} {[%emt 00:00:11]} 6. Nb5 {[%clk 01:14:35]} {[%emt
00:00:07]} Nc6 {[%clk 01:28:28]} {[%emt 00:00:47]} 7. d3 {[%clk 01:15:01]}
{[%emt 00:00:05]} a6 {[%clk 01:27:30]} {[%emt 00:01:28]} 8. Na3 {[%clk
01:15:22]} {[%emt 00:00:09]} Nf6 {[%clk 01:24:46]} {[%emt 00:03:14]} 9. g3
{[%clk 01:14:38]} {[%emt 00:01:15]} Be7 {[%clk 01:20:44]} {[%emt 00:04:31]} 10.
Bg2 {[%clk 01:14:07]} {[%emt 00:01:01]} O-O {[%clk 01:21:05]} {[%emt 00:00:09]}
11. O-O {[%clk 01:14:26]} {[%emt 00:00:10]} Nd7 {[%clk 01:20:46]} {[%emt
00:00:50]} 12. Nc2 {[%clk 01:13:20]} {[%emt 00:01:36]} e5 {[%clk 01:18:26]}
{[%emt 00:02:49]} 13. Re1 {[%clk 01:12:09]} {[%emt 00:01:42]} a5 {[%clk
01:17:20]} {[%emt 00:01:36]} 14. Rb1 {[%clk 01:04:58]} {[%emt 00:07:41]} f5
{[%clk 01:13:51]} {[%emt 00:03:58]} 15. a3 {[%clk 01:00:25]} {[%emt 00:05:04]}
a4 {[%clk 01:12:45]} {[%emt 00:01:36]} 16. Bd2 {[%clk 01:00:38]} {[%emt
00:00:18]} Kh8 {[%clk 01:07:52]} {[%emt 00:05:22]} 17. Nb4 {[%clk 00:57:38]}
{[%emt 00:03:30]} Bf6 {[%clk 01:04:55]} {[%emt 00:03:27]} 18. Nxc6 {[%clk
00:50:19]} {[%emt 00:07:49]} bxc6 {[%clk 01:05:10]} {[%emt 00:00:15]} 19. h4
{[%clk 00:50:45]} {[%emt 00:00:04]} h6 {[%clk 01:03:53]} {[%emt 00:01:47]} 20.
Ng5 {[%clk 00:50:13]} {[%emt 00:01:02]} Nc5 {[%clk 01:01:14]} {[%emt 00:03:08]}
21. Bb4 {[%clk 00:36:25]} {[%emt 00:14:19]} Qd6 {[%clk 00:58:47]} {[%emt
00:02:57]} 22. Qh5 {[%clk 00:34:20]} {[%emt 00:02:34]} Kg8 {[%clk 00:57:55]}
{[%emt 00:01:23]} 23. g4 {[%clk 00:29:00]} {[%emt 00:05:50]} Rb8 {[%clk
00:51:56]} {[%emt 00:06:29]} 24. Rbd1 {[%clk 00:24:36]} {[%emt 00:04:55]} Bd7
{[%clk 00:42:40]} {[%emt 00:09:45]} 25. gxf5 {[%clk 00:19:47]} {[%emt
00:05:19]} Bxg5 {[%clk 00:42:46]} {[%emt 00:00:24]} 26. hxg5 {[%clk 00:20:09]}
{[%emt 00:00:08]} Rxf5 {[%clk 00:43:02]} {[%emt 00:00:13]} 27. Qg4 {[%emt
00:08:01]} Rxg5 {[%clk 00:38:35]} {[%emt 00:01:31]} 28. Bxc5 {[%clk 00:16:20]}
{[%emt 00:00:15]} Qf6 {[%clk 00:35:35]} {[%emt 00:03:29]} 29. Qg3 {[%clk
00:10:11]} {[%emt 00:06:39]} Rxg3 {[%clk 00:29:18]} {[%emt 00:06:47]} 30. fxg3
{[%clk 00:10:36]} Qg5 {[%clk 00:28:58]} {[%emt 00:00:55]} 31. Bd6 {[%clk
00:08:35]} Re8 {[%clk 00:28:46]} {[%emt 00:03:14]} 32. Rf1 {[%emt 00:03:58]}
Qxg3 {[%clk 00:27:22]} {[%emt 00:00:01]} 33. Rf3 {[%clk 00:07:25]} {[%emt
00:00:04]} Qg6 {[%clk 00:27:19]} {[%emt 00:00:33]} 34. c5 {[%clk 00:07:37]}
{[%emt 00:00:20]} Be6 {[%clk 00:22:03]} {[%emt 00:05:45]} 0-1

[ePGN "0.1;DGT LiveChess/2.1"]

[Event "Open International Liffre 2019"]
[Site "Liffre"]
[Date "2019.10.20"]
[Round "3.1"]
[White "Sundararajan, Kidambi"]
[Black "Satyapragyan, Swayangsu"]
[Result "1/2-1/2"]
[TimeControl "1h30 + 30s/coup + 30 min /40 Coup"]
[WhiteTitle "GM"]
[BlackTitle "IM"]
[WhiteElo "2422"]
[BlackElo "2395"]

1. d4 {[%clk 01:30:52]} {[%emt 00:00:08]} Nf6 {[%clk 01:30:32]} {[%emt
00:00:29]} 2. c4 {[%clk 01:31:13]} {[%emt 00:00:09]} e6 {[%clk 01:30:47]}
{[%emt 00:00:15]} 3. Nc3 {[%clk 01:31:34]} {[%emt 00:00:08]} Bb4 {[%clk
01:30:57]} {[%emt 00:00:21]} 4. e3 {[%clk 01:31:49]} {[%emt 00:00:13]} O-O
{[%clk 01:30:24]} {[%emt 00:01:04]} 5. Bd3 {[%clk 01:31:45]} {[%emt 00:00:34]}
d5 {[%clk 01:29:50]} {[%emt 00:01:05]} 6. Nf3 {[%clk 01:30:46]} {[%emt
00:01:28]} c5 {[%clk 01:29:06]} {[%emt 00:01:15]} 7. O-O {[%clk 01:30:11]}
{[%emt 00:01:04]} Nc6 {[%clk 01:29:08]} {[%emt 00:00:29]} 8. cxd5 {[%clk
01:30:08]} {[%emt 00:00:32]} exd5 9. dxc5 Bxc5 {[%emt 00:00:13]} 10. h3 {[%emt
00:04:57]} Be6 {[%clk 01:23:30]} {[%emt 00:00:03]} 11. b3 {[%clk 01:30:16]}
{[%emt 00:01:00]} Qe7 {[%clk 01:21:24]} {[%emt 00:02:36]} 12. Bb2 {[%clk
01:28:39]} {[%emt 00:02:07]} Rad8 {[%clk 01:20:52]} {[%emt 00:01:03]} 13. Ne2
{[%clk 01:28:07]} {[%emt 00:01:01]} Ne4 {[%clk 01:17:27]} {[%emt 00:03:55]} 14.
Ned4 {[%clk 01:26:17]} {[%emt 00:02:20]} Bc8 {[%clk 01:03:32]} {[%emt
00:10:49]} 15. Rc1 Nxd4 {[%clk 00:51:35]} {[%emt 00:13:04]} 16. Nxd4 Qg5 {[%clk
00:50:42]} {[%emt 00:21:31]} 17. f4 {[%clk 01:08:33]} Qe7 {[%clk 00:50:42]} 18.
Bxe4 {[%clk 01:08:33]} {[%emt 00:03:05]} dxe4 {[%clk 00:50:47]} {[%emt
00:00:24]} 19. Qh5 {[%clk 01:07:33]} {[%emt 00:01:30]} Bb6 {[%clk 00:40:38]}
{[%emt 00:10:41]} 20. Rc2 {[%clk 00:56:04]} {[%emt 00:11:58]} f6 {[%clk
00:36:17]} {[%emt 00:04:50]} 21. Rfc1 {[%clk 00:49:12]} {[%emt 00:07:22]} Be6
{[%clk 00:36:23]} {[%emt 00:00:24]} 1/2-1/2

[ePGN "0.1;DGT LiveChess/2.1"]

[Event "Open International Liffre 2019"]
[Site "Liffre"]
[Date "2019.10.20"]
[Round "3.2"]
[White "Nikolov, Momchil"]
[Black "Vidal, Llewellyn"]
[Result "1-0"]
[TimeControl "1h30 + 30s/coup + 30 min /40 Coup"]
[WhiteTitle "GM"]
[BlackTitle "FM"]
[WhiteElo "2557"]
[BlackElo "2319"]

1. d4 {[%clk 01:30:56]} {[%emt 00:00:03]} d5 {[%clk 01:30:50]} {[%emt
00:00:10]} 2. c4 {[%clk 01:31:14]} {[%emt 00:00:12]} e6 {[%clk 01:31:13]}
{[%emt 00:00:07]} 3. Nc3 {[%clk 01:31:35]} {[%emt 00:00:09]} Bb4 {[%clk
01:31:38]} {[%emt 00:00:06]} 4. Qa4+ {[%clk 01:25:24]} {[%emt 00:06:40]} Nc6
{[%clk 01:30:52]} {[%emt 00:01:15]} 5. e3 {[%clk 01:25:01]} {[%emt 00:00:54]}
dxc4 {[%clk 01:26:19]} {[%emt 00:05:04]} 6. Bxc4 {[%clk 01:23:52]} {[%emt
00:01:38]} Qg5 {[%clk 01:22:30]} {[%emt 00:04:20]} 7. g3 {[%clk 01:16:08]}
{[%emt 00:08:13]} Nf6 {[%clk 01:19:29]} {[%emt 00:03:31]} 8. Nf3 {[%clk
01:12:48]} Qf5 {[%clk 01:18:39]} {[%emt 00:05:11]} 9. Ne5 {[%clk 01:02:07]} Ne4
{[%clk 01:09:21]} {[%emt 00:20:59]} 10. O-O {[%clk 01:02:07]} Bxc3 {[%emt
00:07:17]} 11. bxc3 f6 12. Nxc6 Bd7 {[%clk 01:03:04]} 13. Qb3 {[%clk 00:56:55]}
bxc6 {[%clk 01:03:04]} 14. f3 {[%emt 01:18:10]} Ng5 15. e4 {[%clk 00:33:39]}
Nxf3+ {[%clk 00:16:57]} {[%emt 00:01:25]} 16. Kg2 {[%clk 00:33:42]} {[%emt
00:00:27]} Nh4+ {[%clk 00:17:18]} {[%emt 00:00:09]} 17. gxh4 {[%clk 00:33:49]}
{[%emt 00:00:22]} Qg4+ {[%clk 00:17:44]} {[%emt 00:00:05]} 18. Kf2 {[%clk
00:33:52]} {[%emt 00:00:26]} Qxe4 {[%clk 00:13:38]} {[%emt 02:02:14]} 19. Qd1
{[%clk 00:30:32]} Qxh4+ {[%clk 00:11:31]} 20. Kg1 {[%clk 00:30:50]} O-O {[%clk
00:11:40]} 21. Qf3 {[%clk 00:29:41]} c5 {[%clk 00:09:14]} 22. Ba3 {[%clk
00:28:24]} cxd4 {[%clk 00:06:19]} 23. Bxf8 {[%clk 00:27:49]} Rxf8 {[%clk
00:06:47]} 24. Qf4 {[%clk 00:26:17]} Qh3 {[%clk 00:05:26]} 25. Rf3 {[%clk
00:25:27]} Qh5 {[%clk 00:05:53]} 26. cxd4 {[%clk 00:25:31]} g5 {[%clk
00:05:52]} 27. Qe4 {[%clk 00:24:53]} Kg7 {[%clk 00:04:27]} 28. Raf1 {[%clk
00:24:45]} f5 {[%clk 00:01:52]} 29. Qe5+ {[%clk 00:24:28]} Rf6 {[%clk
00:01:22]} 30. Rg3 {[%clk 00:21:48]} h6 {[%clk 00:01:41]} 31. Qxc7 {[%clk
00:21:38]} Rf7 {[%clk 00:01:53]} 32. Qe5+ {[%clk 00:21:18]} 1-0

[ePGN "0.1;DGT LiveChess/2.1"]